lending/lending_fUSD_20241115
["ID","MTS","AMOUNT","RATE_DAILY","PERIOD"]
[342265128,1731684427847,-150.0,9.759e-05,2]
[342265129,1731684427867,-300.0,9.759e-05,2]
[342265130,1731684427890,-150.0,9.761e-05,2]
[342265131,1731684427916,-150.0,9.762e-05,2]
[342265132,1731684427938,-150.0,9.763e-05,2]
[342265133,1731684427961,-150.0,9.764e-05,2]
[342265134,1731684427981,-1500.0,9.767e-05,2]
[342265135,1731684428010,-150.0,9.771e-05,2]
[342265136,1731684428356,-582.83844159,9.771e-05,2]
[342265137,1731684429772,-917.16155841,9.771e-05,2]
[342265138,1731684429795,-150.0,9.775e-05,2]
[342265139,1731684429819,-150.0,9.776e-05,2]
[342265140,1731684429843,-150.0,9.776e-05,2]
[342265141,1731684429866,-150.0,9.779e-05,2]
[342265142,1731684429889,-154.19041001,9.783e-05,2]
[342265143,1731684429912,-150.0,9.783e-05,2]
[342265144,1731684429935,-150.0,9.785e-05,2]
[342265145,1731684429957,-150.0,9.787e-05,2]
[342265146,1731684429978,-150.0,9.787e-05,2]
[342265147,1731684430005,-150.0,9.788e-05,2]
[342265148,1731684430025,-150.0,9.79e-05,2]
[342265149,1731684430048,-150.0,9.79e-05,2]
[342265150,1731684430072,-150.0,9.791e-05,2]
[342265151,1731684430094,-150.0,9.795e-05,2]
[342265152,1731684430529,-150.0,9.797e-05,2]
[342265153,1731684430555,-1000.0,9.8e-05,2]
[342265154,1731684430579,-150.0,9.801e-05,2]
[342265155,1731684430601,-150.0,9.804e-05,2]
[342265156,1731684430624,-150.0,9.805e-05,2]
[342265157,1731684430645,-150.0,9.805e-05,2]
[342265158,1731684430668,-150.0,9.806e-05,2]
[342265159,1731684430690,-150.0,9.807e-05,2]
[342265160,1731684430712,-150.0,9.808e-05,2]
[342265161,1731684430732,-150.0,9.808e-05,2]
[342265162,1731684430758,-150.0,9.813e-05,2]
[342265163,1731684430786,-150.0,9.813e-05,2]
[342265164,1731684430808,-150.0,9.814e-05,2]
[342265165,1731684430831,-150.0,9.815e-05,2]
[342265166,1731684430855,-325.30004552,9.817e-05,2]
[342265167,1731684437092,-793.34059624,9.817e-05,2]
[342265168,1731684437114,-1500.0,9.818e-05,2]
[342265169,1731684437137,-150.0,9.82e-05,2]
[342265170,1731684437158,-150.0,9.821e-05,2]
[342265171,1731684437179,-488.10816376,9.822e-05,2]
[342265172,1731684437202,-150.0,9.822e-05,2]
[342265173,1731684437224,-150.0,9.824e-05,2]
[342265174,1731684437255,-150.0,9.824e-05,2]
[342265175,1731684437280,-150.0,9.828e-05,2]
[342265176,1731684437301,-150.0,9.83e-05,2]
[342265177,1731684437322,-150.0,9.833e-05,2]
[342265178,1731684437346,-150.0,9.834e-05,2]
[342265179,1731684437366,-150.0,9.834e-05,2]
[342265180,1731684437392,-150.0,9.84e-05,2]
[342265181,1731684437416,-150.0,9.843e-05,2]
[342265182,1731684437438,-1500.0,9.845e-05,2]
[342265183,1731684437459,-1054.0,9.849e-05,2]
[342265184,1731684437479,-150.0,9.85e-05,2]
[342265185,1731684437507,-150.0,9.855e-05,2]
[342265186,1731684437528,-150.0,9.855e-05,2]
[342265187,1731684437550,-150.0,9.856e-05,2]
[342265188,1731684437572,-150.0,9.856e-05,2]
[342265189,1731684437595,-150.0,9.858e-05,2]
[342265190,1731684437619,-150.0,9.86e-05,2]
[342265191,1731684437643,-150.0,9.86e-05,2]
[342265192,1731684437668,-150.0,9.863e-05,2]
[342265193,1731684437694,-150.0,9.863e-05,2]
[342265194,1731684437719,-459.51,9.865e-05,2]
[342265195,1731684437749,-150.0,9.873e-05,2]
[342265196,1731684437771,-150.0,9.875e-05,2]
[342265197,1731684437794,-150.0,9.879e-05,2]
[342265198,1731684437817,-150.0,9.882e-05,2]
[342265199,1731684437843,-150.0,9.883e-05,2]
[342265200,1731684437868,-150.0,9.885e-05,2]
[342265201,1731684437891,-150.0,9.885e-05,2]
[342265202,1731684437912,-150.0,9.894e-05,2]
[342265203,1731684437935,-4653.5477,9.9e-05,2]
[342265204,1731684437955,-4915.84350321,9.9e-05,2]
[342265205,1731684437975,-33524.2926,9.9e-05,2]
[342265206,1731684438007,-322.2292,9.9e-05,2]
[342265207,1731684438032,-12178.2897,9.9e-05,2]
[342265208,1731684438057,-6342.8887,9.9e-05,2]
[342265209,1731684438078,-1000.0,9.9e-05,2]
[342265210,1731684438097,-1500.0,9.9e-05,2]
[342265211,1731684438118,-5000.0,9.9e-05,2]
[342265212,1731684438138,-500.0,9.9e-05,2]
[342265213,1731684438159,-500.0,9.9e-05,2]
[342265214,1731684438179,-406.94137781,9.9e-05,2]
[342265215,1731684438201,-1000.7428568,9.9e-05,2]
[342265216,1731684438224,-150.0,9.918e-05,2]
[342265217,1731684438252,-150.0,9.965e-05,2]
[342265218,1731684438273,-163.33,9.965e-05,2]
[342265219,1731684438293,-150.0,9.965e-05,2]
[342265220,1731684438314,-362.4,9.965e-05,2]
[342265221,1731684438335,-150.0,9.965e-05,2]
[342265222,1731684438355,-150.0,9.965e-05,2]
[342265223,1731684438377,-8305.0,9.973e-05,2]
[342265224,1731684438399,-500.0,9.973e-05,2]
[342265225,1731684438420,-1000.401,9.98e-05,2]
[342265226,1731684438441,-151.27000629,9.985e-05,2]
[342265227,1731684438462,-182.14584563,9.988e-05,2]
[342265228,1731684438483,-263.69447502,9.988e-05,2]
[342265229,1731684438516,-236.51988554,9.999e-05,2]
[342265230,1731684438540,-500.0,9.999e-05,2]
[342265231,1731684438573,-6024.67956958,0.0001,2]
[342265232,1731684438595,-13924.34050394,0.0001,2]
[342265233,1731684445163,-78993.26666879,0.0001,2]
[342265234,1731684493868,175.0,8.5e-05,2]
[342265248,1731684632391,-1268.58,9.466e-05,2]
[342265249,1731684632402,-1000.0,9.596e-05,2]
[342265250,1731684632412,-243.26082573,9.6e-05,2]
[342265252,1731684632424,-160.00917427,9.6e-05,2]
[342265254,1731684632434,-782.7587,9.89e-05,2]
[342265255,1731684632444,-300.0,9.899e-05,2]
[342265256,1731684632454,-150.0,9.899e-05,2]
[342265257,1731684632464,-2342.95791948,9.9e-05,2]
[342265258,1731684632476,-2657.04208052,9.9e-05,2]
[342265259,1731684632485,-14511.19738722,9.9e-05,2]
[342265260,1731684632572,-10959.99999978,9.9e-05,2]
[342265261,1731684632631,-3550.09313257,9.9e-05,2]
[342265262,1731684632643,-1044.35100001,9.9e-05,2]
[342265263,1731684632689,-1205.30146288,9.9e-05,2]
[342265264,1731684632753,-658.05664554,9.9e-05,2]
[342265265,1731684632765,-13695.69603422,9.9e-05,2]
[342265266,1731684632814,-11899.77576446,9.9e-05,2]
[342265268,1731684632826,-2744.22,9.9e-05,2]
[342265326,1731684639392,-14578.12288679,9.9e-05,2]
[342265328,1731684639403,-1697.8306,9.9e-05,2]
[342265330,1731684639415,-53018.36548653,9.9e-05,2]
[342265333,1731684639424,-390.7027,9.9e-05,2]
[342265334,1731684639434,-18797.83575455,9.99e-05,2]
[342265336,1731684639443,-428714.39548085,0.0001,2]
[342265338,1731684639452,-770739.04603808,0.0001,2]
[342265340,1731684639461,-9721.0,0.0001,2]
[342265342,1731684639471,-4918076.61975385,0.0001,2]
[342265345,1731684639482,-351.536,0.0001,2]
[342265347,1731684639497,-850.81000002,0.0001,2]
[342265349,1731684639508,-50674.75778101,0.0001,2]
[342265369,1731684639703,-1103.20715726,0.0001,2]
[342265371,1731684639715,-17595.6060911,0.0001,2]
[342265375,1731684639741,-36103.95583069,0.0001,2]
[342265377,1731684639753,-690.75,0.0001,2]
[342265380,1731684639772,-576.45873212,0.0001,2]
[342265384,1731684639795,-8777.03485826,0.0001,2]
[342265386,1731684639814,-428.73,0.0001,2]
[342265445,1731684640390,-150.0,9.901e-05,2]
[342265447,1731684640402,-150.0,9.908e-05,2]
[342265449,1731684640424,-1524.29585,0.0001,2]
[342265451,1731684640436,-901.4202829,0.0001,2]
[342265453,1731684640454,-13191.07347227,0.0001,2]
[342265457,1731684641622,-150.0,9.747e-05,2]
[342265458,1731684641631,-150.0,9.974e-05,2]
[342265459,1731684641641,-75367.84170217,0.0001,2]
[342265460,1731684641653,-879.879,0.0001,2]
[342265461,1731684641675,-1438.89368145,0.0001,2]
[342265462,1731684641687,-4125.78510001,0.0001,2]
[342265463,1731684641698,-487.4975105,0.0001,2]
[342265464,1731684641720,-4569.08841696,0.0001,2]
[342265465,1731684641731,-978.9,0.0001,2]
[342265466,1731684641743,-606.0,0.0001,2]
[342265467,1731684641754,-414.28,0.0001,2]
[342265468,1731684641765,-2333.49999996,0.0001,2]
[342265469,1731684641775,-304.7606258,0.0001,2]
[342265470,1731684641793,-1575.15889195,0.0001,2]
[342265471,1731684641804,-1521.60740602,0.0001,2]
[342265489,1731684643453,-150.0,9.77e-05,2]
[342265490,1731684643462,-458.2999995,9.859e-05,2]
[342265491,1731684643478,-1041.7000005,9.859e-05,2]
[342265492,1731684643487,-150.0,9.864e-05,2]
[342265493,1731684643496,-150.0,9.954e-05,2]
[342265494,1731684643505,-13.8307495,0.0001,2]
[342265495,1731684643516,-3628.61000001,0.0001,2]
[342265496,1731684643527,-648.0,0.0001,2]
[342265497,1731684643539,-8798.02859357,0.0001,2]
[342265498,1731684643550,-710.21605761,0.0001,2]
[342265499,1731684643561,-906.17357973,0.0001,2]
[342265500,1731684643573,-2979.3294998,0.0001,2]
[342265501,1731684643585,-2993.45862638,0.0001,2]
[342265502,1731684643596,-638.954534,0.0001,2]
[342265503,1731684643607,-5867.31357,0.0001,2]
[342265504,1731684643618,-26850.27803336,0.0001,2]
[342265505,1731684643629,-3270.96566886,0.0001,2]
[342265506,1731684643640,-594197.5,0.0001,2]
[342265507,1731684643683,1480.5678454,0.00025,60]
[342265509,1731684643712,-2271.17156585,0.0001,2]
[342265511,1731684643724,-1576.575001,0.0001,2]
[342265513,1731684643736,-320.19392243,0.0001,2]
[342265515,1731684643747,-35778.404,0.0001,2]
[342265548,1731684646356,-500.0,0.0001,2]
[342265549,1731684646368,-55277.89138735,0.0001,2]
[342265551,1731684646420,-35637.963,0.0001,2]
[342265552,1731684646432,-64223.91263271,0.0001,2]
[342265553,1731684646477,-2269.19,0.0001,2]
[342265554,1731684646531,-1102.8647575,0.0001,2]
[342265555,1731684646598,-1817.60043413,0.0001,2]
[342265556,1731684646610,-2409.67829795,0.0001,2]
[342265557,1731684646646,-7396.86731,0.0001,2]
[342265568,1731684646984,-12482.46086625,0.0001,2]
[342265571,1731684646996,-22010.0,0.0001,2]
[342265579,1731684647576,-226991.36786133,0.0001,2]
[342265580,1731684647588,-91699.96000008,0.0001,2]
[342265582,1731684697263,1058.37,8.219e-05,2]
[342265583,1731684711715,-1000.0,0.0001,7]
[342265584,1731684766959,157.489,0.0002425,60]
[342265586,1731685048671,100000.0,0.00025,60]
[342265587,1731685135438,100000.0,0.00025,60]
[342265588,1731685185693,100000.0,0.00025,60]
[342265589,1731685189333,100000.0,0.00025,60]
[342265590,1731685190404,100000.0,0.00025,60]
[342265592,1731685441152,157.525,0.00025,60]
[342265593,1731685476196,1127.78,8.219e-05,2]
[342265594,1731685499621,200.0,7.984e-05,2]
[342265595,1731685560011,200.0,7.987e-05,2]
[342265596,1731685560062,1260.46,7.987e-05,2]
[342265597,1731685585719,250.0,8.219e-05,2]
[342265598,1731685639092,-150.0,8.603e-05,2]
[342265599,1731685639115,-337.42,8.617e-05,2]
[342265600,1731685639151,-337.42,8.619e-05,2]
[342265601,1731685639184,-337.42,8.622e-05,2]
[342265602,1731685639210,-337.42,8.624e-05,2]
[342265603,1731685639234,-337.42,8.626e-05,2]
[342265604,1731685639258,-337.42,8.628e-05,2]
[342265605,1731685639281,-337.42,8.631e-05,2]
[342265606,1731685639305,-337.42,8.633e-05,2]
[342265607,1731685639327,-337.42,8.635e-05,2]
[342265608,1731685639349,-337.42,8.638e-05,2]
[342265609,1731685639371,-337.42,8.64e-05,2]
[342265610,1731685639393,-337.42,8.642e-05,2]
[342265611,1731685639420,-337.42,8.644e-05,2]
[342265612,1731685639443,-337.42,8.647e-05,2]
[342265613,1731685639465,-337.42,8.649e-05,2]
[342265614,1731685639487,-337.42,8.651e-05,2]
[342265615,1731685639510,-337.42,8.653e-05,2]
[342265616,1731685639532,-337.42,8.656e-05,2]
[342265617,1731685639554,-337.42,8.658e-05,2]
[342265618,1731685639577,-337.42,8.66e-05,2]
[342265619,1731685639599,-250.0,8.692e-05,2]
[342265620,1731685639626,-250.0,8.695e-05,2]
[342265621,1731685639649,-300.0,8.702e-05,2]
[342265622,1731685639673,-6395.96,8.703e-05,2]
[342265623,1731685639695,-772.63,8.743e-05,2]
[342265624,1731685639718,-150.0,8.743e-05,2]
[342265625,1731685639740,-7369.92,8.767e-05,2]
[342265626,1731685639765,-1000.0,8.782e-05,2]
[342265627,1731685639788,-195.32,8.79e-05,2]
[342265628,1731685639812,-524.29,8.797e-05,2]
[342265629,1731685639835,-1713.08,8.802e-05,2]
[342265630,1731685639857,-1474.38,8.865e-05,2]
[342265631,1731685639879,-2397.36535582,8.945e-05,2]
[342265632,1731685639902,-23900.0,8.946e-05,2]
[342265633,1731685639927,-2000.0,8.959e-05,2]
[342265634,1731685639951,-170.42,9.036e-05,2]
[342265635,1731685639974,-2103.035,9.344e-05,2]
[342265636,1731685639998,-18797.83575455,9.434e-05,2]
[342265637,1731685640021,-25010.67211786,9.444e-05,5]
[342265638,1731685640045,-1916.37,9.444e-05,2]
[342265639,1731685640068,-2364.5371,9.5e-05,2]
[342265640,1731685640090,-1901.9361,9.5e-05,2]
[342265641,1731685640115,-500.0,9.6e-05,2]
[342265642,1731685640139,-500.0,9.6e-05,2]
[342265643,1731685640164,-500.0,9.6e-05,2]
[342265644,1731685640189,-500.0,9.6e-05,2]
[342265645,1731685640219,-500.0,9.6e-05,2]
[342265646,1731685640243,-500.0,9.6e-05,2]
[342265647,1731685640267,-500.0,9.6e-05,2]
[342265648,1731685640291,-500.0,9.6e-05,2]
[342265649,1731685640314,-500.0,9.6e-05,2]
[342265650,1731685640337,-500.0,9.6e-05,2]
[342265651,1731685640358,-500.0,9.6e-05,2]
[342265652,1731685640382,-500.0,9.6e-05,2]
[342265653,1731685640404,-366.94,9.6e-05,2]
[342265654,1731685640429,-500.0,9.6e-05,2]
[342265655,1731685640451,-500.0,9.6e-05,2]
[342265656,1731685640473,-500.0,9.6e-05,2]
[342265657,1731685640495,-500.0,9.6e-05,2]
[342265658,1731685640516,-500.0,9.6e-05,2]
[342265659,1731685640539,-500.0,9.6e-05,2]
[342265660,1731685640562,-500.0,9.6e-05,2]
[342265661,1731685640584,-500.0,9.6e-05,2]
[342265662,1731685640607,-500.0,9.6e-05,2]
[342265663,1731685640631,-500.0,9.6e-05,2]
[342265664,1731685640653,-500.0,9.6e-05,2]
[342265665,1731685640679,-360.05,9.6e-05,2]
[342265666,1731685640702,-500.0,9.6e-05,2]
[342265667,1731685640726,-500.0,9.6e-05,2]
[342265668,1731685640750,-500.0,9.6e-05,2]
[342265669,1731685640773,-500.0,9.6e-05,2]
[342265670,1731685640795,-601.08,9.6e-05,2]
[342265671,1731685640819,-255.0,9.617e-05,2]
[342265672,1731685640840,-3434.36,9.67e-05,2]
[342265673,1731685640862,-305.32,9.67e-05,2]
[342265674,1731685640886,-793.26,9.67e-05,2]
[342265675,1731685640915,-1773.88,9.67e-05,2]
[342265676,1731685640939,-3078.71,9.67e-05,2]
[342265677,1731685640962,-1904.4,9.67e-05,2]
[342265678,1731685640985,-299.99,9.67e-05,2]
[342265679,1731685641008,-6764.88,9.67e-05,2]
[342265680,1731685641038,-150.99,9.67e-05,2]
[342265681,1731685641062,-2645.6231,9.679e-05,2]
[342265682,1731685641084,-8981.4471,9.679e-05,2]
[342265683,1731685641106,-4193.4267,9.7e-05,2]
[342265684,1731685641128,-1000.0,9.7e-05,2]
[342265685,1731685641151,-5202.5938,9.7e-05,2]
[342265686,1731685641178,-24418.7622,9.7e-05,2]
[342265687,1731685641200,-5255.9355,9.7e-05,2]
[342265688,1731685641227,-2500.0,9.7e-05,2]
[342265689,1731685641254,-1000.0,9.7e-05,2]
[342265690,1731685641279,-150.0,9.728e-05,2]
[342265691,1731685641305,-150.0,9.729e-05,2]
[342265692,1731685641329,-150.0,9.731e-05,2]
[342265693,1731685641352,-150.0,9.735e-05,2]
[342265694,1731685641376,-150.0,9.74e-05,2]
[342265695,1731685641399,-150.0,9.74e-05,2]
[342265696,1731685641427,-150.0,9.741e-05,2]
[342265697,1731685641452,-150.0,9.742e-05,2]
[342265698,1731685641476,-150.0,9.743e-05,2]
[342265699,1731685641500,-150.0,9.743e-05,2]
[342265700,1731685641525,-150.0,9.745e-05,2]
[342265701,1731685641549,-150.0,9.747e-05,2]
[342265702,1731685641574,-150.0,9.747e-05,2]
[342265703,1731685641598,-150.0,9.747e-05,2]
[342265704,1731685641622,-150.0,9.758e-05,2]
[342265705,1731685641645,-150.0,9.76e-05,2]
[342265706,1731685641673,-150.0,9.761e-05,2]
[342265707,1731685641698,-150.0,9.761e-05,2]
[342265708,1731685641721,-150.0,9.762e-05,2]
[342265709,1731685641746,-150.0,9.763e-05,2]
[342265710,1731685641770,-150.0,9.766e-05,2]
[342265711,1731685641793,-150.0,9.774e-05,2]
[342265712,1731685641815,-150.0,9.774e-05,2]
[342265713,1731685641839,-150.0,9.779e-05,2]
[342265714,1731685641863,-150.0,9.782e-05,2]
[342265715,1731685641885,-170.42,9.782e-05,2]
[342265716,1731685641908,-150.0,9.783e-05,2]
[342265717,1731685641936,-150.0,9.789e-05,2]
[342265718,1731685641960,-150.0,9.79e-05,2]
[342265719,1731685641985,-150.0,9.791e-05,2]
[342265720,1731685642009,-150.0,9.797e-05,2]
[342265721,1731685642033,-150.0,9.799e-05,2]
[342265722,1731685642057,-150.0,9.799e-05,2]
[342265723,1731685642079,-510.3345,9.8e-05,2]
[342265724,1731685642101,-321.4175,9.8e-05,2]
[342265725,1731685642123,-9881.0106,9.8e-05,2]
[342265726,1731685642144,-1951.3651,9.8e-05,2]
[342265727,1731685642168,-3838.2839,9.8e-05,2]
[342265728,1731685642191,-3551.4222,9.8e-05,2]
[342265729,1731685642216,-946.7214,9.8e-05,2]
[342265730,1731685642239,-890.0466,9.8e-05,2]
[342265731,1731685642262,-18762.75103804,9.8e-05,2]
[342265732,1731685643871,-23668.10337714,9.8e-05,2]
[342265733,1731685644167,-11689.56740401,9.8e-05,2]
[342265741,1731685813511,1000.0,0.00025,60]
[342265742,1731685815547,1000.0,0.00025,60]
[342265743,1731685818493,1000.0,0.00025,60]
[342265744,1731685819117,1000.0,0.00025,60]
[342265745,1731685820200,1000.0,0.00025,60]
[342265746,1731685821677,1000.0,0.00025,60]
[342265747,1731685827690,1000.0,0.00025,60]
[342265770,1731685831736,-155.76752852,8.603e-05,2]
[342265772,1731685831746,-3129.65,8.873e-05,2]
[342265774,1731685831757,-187.95436762,8.889e-05,2]
[342265776,1731685831769,-112.04563238,8.889e-05,2]
[342265778,1731685831778,-315.73010134,8.89e-05,2]
[342265780,1731685831790,-8684.23453727,8.89e-05,2]
[342265783,1731685831804,-262.48322908,8.89e-05,2]
[342265785,1731685831821,-1428.30294052,8.89e-05,2]
[342265787,1731685831833,-295.44814184,8.89e-05,2]
[342265788,1731685831848,-12913.80104995,8.89e-05,2]
[342265789,1731685831858,-210.47400044,9e-05,2]
[342265790,1731685831868,-247.9145794,9.07e-05,2]
[342265791,1731685831878,-1757.81824392,9.071e-05,2]
[342265792,1731685831892,-242.18175608,9.071e-05,2]
[342265793,1731685831902,-2832.17,9.071e-05,2]
[342265794,1731685831911,-263.5981,9.344e-05,2]
[342265795,1731685831921,-3769.08319392,9.344e-05,2]
[342265796,1731685831933,-793.96932793,9.344e-05,2]
[342265797,1731685831944,-2780.50157815,9.344e-05,2]
[342265798,1731685831954,-2893.2062,9.344e-05,2]
[342265799,1731685831963,-906.29222185,9.344e-05,2]
[342265800,1731685831988,-1114.37977815,9.344e-05,2]
[342265801,1731685831998,-216.7892,9.344e-05,2]
[342265802,1731685832007,-2500.0,9.7e-05,2]
[342265803,1731685832016,-9588.0,9.703e-05,2]
[342265804,1731685832026,-150.0,9.731e-05,2]
[342265805,1731685832035,-150.0,9.732e-05,2]
[342265806,1731685832044,-150.0,9.732e-05,2]
[342265807,1731685832058,-150.0,9.755e-05,2]
[342265808,1731685832068,-150.99,9.755e-05,2]
[342265811,1731685832077,-150.0,9.756e-05,2]
[342265813,1731685832087,-150.0,9.756e-05,2]
[342265814,1731685832097,-150.0,9.758e-05,2]
[342265815,1731685832106,-150.0,9.763e-05,2]
[342265816,1731685832115,-150.0,9.777e-05,2]
[342265817,1731685832125,-420.0,9.777e-05,2]
[342265818,1731685832135,-150.0,9.778e-05,2]
[342265819,1731685832144,-150.0,9.783e-05,2]
[342265820,1731685832154,-150.0,9.791e-05,2]
[342265821,1731685832163,-150.0,9.799e-05,2]
[342265822,1731685832173,-17704.08728081,9.8e-05,2]
[342265823,1731685832183,-1000.0,9.8e-05,2]
[342265824,1731685832193,-5000.0,9.8e-05,2]
[342265825,1731685832202,-150.0,9.802e-05,2]
[342265826,1731685832212,-150.0,9.819e-05,2]
[342265827,1731685832222,-150.0,9.821e-05,2]
[342265828,1731685832233,-150.0,9.822e-05,2]
[342265829,1731685832253,-150.0,9.825e-05,2]
[342265830,1731685832276,-150.0,9.833e-05,2]
[342265831,1731685832297,-150.0,9.839e-05,2]
[342265832,1731685832321,-150.0,9.839e-05,2]
[342265833,1731685832342,-150.0,9.843e-05,2]
[342265834,1731685832354,-150.0,9.856e-05,2]
[342265835,1731685832363,-150.0,9.858e-05,2]
[342265836,1731685832373,-150.0,9.858e-05,2]
[342265837,1731685832383,-150.0,9.867e-05,2]
[342265838,1731685832393,-180.1072781,9.869e-05,2]
[342265839,1731685832402,-150.0,9.87e-05,2]
[342265840,1731685832411,-150.0,9.875e-05,2]
[342265841,1731685832421,-150.0,9.876e-05,2]
[342265842,1731685832431,-1000.0,9.88e-05,2]
[342265843,1731685832441,-150.0,9.882e-05,2]
[342265844,1731685832450,-150.0,9.884e-05,2]
[342265845,1731685832460,-150.0,9.886e-05,2]
[342265846,1731685832469,-150.0,9.889e-05,2]
[342265847,1731685832479,-150.0,9.89e-05,2]
[342265848,1731685832489,-16037.7818,9.89e-05,2]
[342265849,1731685832498,-299.99,9.89e-05,2]
[342265850,1731685832508,-524.29,9.896e-05,2]
[342265851,1731685832517,-1000.0,9.9e-05,2]
[342265852,1731685832527,-37873.4214,9.9e-05,2]
[342265853,1731685832536,-3240.9849,9.9e-05,2]
[342265854,1731685832546,-11282.693,9.9e-05,2]
[342265855,1731685832562,-48690.4776,9.9e-05,2]
[342265856,1731685832572,-1500.0,9.9e-05,2]
[342265857,1731685832581,-1500.0,9.9e-05,2]
[342265858,1731685832591,-1500.0,9.9e-05,2]
[342265859,1731685832600,-1500.0,9.9e-05,2]
[342265860,1731685832610,-1500.0,9.9e-05,2]
[342265861,1731685832620,-1500.0,9.9e-05,2]
[342265862,1731685832630,-1500.0,9.9e-05,2]
[342265863,1731685832640,-1500.0,9.9e-05,2]
[342265864,1731685833007,-439.36,9.9e-05,2]
[342265865,1731685833017,-1000.0,9.9e-05,2]
[342265866,1731685833027,-1000.0,9.9e-05,2]
[342265867,1731685833038,-1000.0,9.9e-05,2]
[342265868,1731685833050,-1062.0,9.9e-05,2]
[342265869,1731685833067,-1000.0,9.9e-05,3]
[342265870,1731685833077,-1000.0,9.9e-05,3]
[342265871,1731685833088,-1122.87529714,9.9e-05,2]
[342265872,1731685833098,-500.0,9.9e-05,2]
[342265873,1731685833108,-202.195,9.9e-05,2]
[342265874,1731685833119,-1000.0,9.9e-05,2]
[342265875,1731685833129,-150.0,9.904e-05,2]
[342265876,1731685833139,-150.0,9.909e-05,2]
[342265877,1731685833150,-150.0,9.918e-05,2]
[342265878,1731685833159,-150.0,9.925e-05,2]
[342265879,1731685833169,-150.0,9.928e-05,2]
[342265880,1731685833180,-150.0,9.931e-05,2]
[342265881,1731685833190,-150.0,9.94e-05,2]
[342265882,1731685833200,-150.0,9.941e-05,2]
[342265883,1731685833210,-150.0,9.949e-05,2]
[342265884,1731685833220,-150.0,9.956e-05,2]
[342265885,1731685833230,-150.0,9.961e-05,2]
[342265886,1731685833239,-150.0,9.962e-05,2]
[342265887,1731685833249,-167.511,9.964e-05,2]
[342265888,1731685833259,-150.0,9.97e-05,2]
[342265889,1731685833270,-500.0,9.973e-05,2]
[342265890,1731685833280,-324.53707758,9.973e-05,2]
[342265891,1731685833291,-323.33690313,9.973e-05,2]
[342265892,1731685833301,-500.0,9.973e-05,2]
[342265893,1731685833319,-500.21366048,9.973e-05,2]
[342265894,1731685833330,-500.49023213,9.973e-05,2]
[342265895,1731685833340,-503.2939556,9.973e-05,2]
[342265896,1731685833350,-627.13642484,9.973e-05,2]
[342265897,1731685833361,-465.89978525,9.973e-05,2]
[342265898,1731685833371,-2307.463,9.973e-05,2]
[342265899,1731685833381,-150.0,9.98e-05,2]
[342265900,1731685833391,-150.0,9.981e-05,2]
[342265901,1731685833401,-150.0,9.983e-05,2]
[342265902,1731685833411,-150.0,9.984e-05,2]
[342265903,1731685833420,-150.0,9.985e-05,2]
[342265904,1731685833430,-150.0,9.985e-05,2]
[342265905,1731685833440,-150.0,9.986e-05,2]
[342265906,1731685833450,-150.0,9.988e-05,2]
[342265907,1731685833459,-150.0,9.991e-05,2]
[342265908,1731685833469,-150.0,9.991e-05,2]
[342265909,1731685833478,-2451.997624,9.992e-05,2]
[342265910,1731685833488,-1292.7253235,9.992e-05,2]
[342265911,1731685833498,-3612.0846209,9.992e-05,2]
[342265912,1731685833507,-2761.7236396,9.993e-05,2]
[342265913,1731685833516,-3071.4496553,9.993e-05,2]
[342265914,1731685833525,-3381.175671,9.993e-05,2]
[342265915,1731685833535,-1599.8145524,9.993e-05,2]
[342265916,1731685833545,-1906.9037813,9.993e-05,2]
[342265917,1731685833558,-2213.9930102,9.993e-05,2]
[342265918,1731685833568,-4470.1418283,9.993e-05,2]
[342265919,1731685833577,-5328.1990356,9.993e-05,2]
[342265920,1731685833587,-6186.256243,9.993e-05,2]
[342265921,1731685833597,-150.0,9.998e-05,2]
[342265922,1731685833607,-1295.39647007,9.999e-05,2]
[342265923,1731685833617,-889.46442929,9.999e-05,2]
[342265924,1731685833628,-153.73004592,9.999e-05,2]